[Event "129th New Zealand Championship 2022"]
[Site "Christchurch"]
[Date "2022.01.03"]
[Round "1.1"]
[White "Milligan, Helen"]
[Black "Croad, Nicolas"]
[Result "1/2-1/2"]
[ECO "C88"]
[WhiteElo "1956"]
[BlackElo "2289"]
[Annotator "ChessBase"]
[PlyCount "87"]
[EventDate "2022.01.02"]
[EventType "swiss"]
[EventCountry "NZL"]
[SourceTitle "playchess.com"]
[Source "ChessBase"]
[SourceQuality "1"]
[TimeControl "40/5400+30:1800+30"]

1. e4 {[%emt 0:00:04]} e5 {[%emt 0:00:06]} 2. Nf3 {[%emt 0:00:07]} Nc6 {[%emt 0:00:04]} 3. Bb5 {[%emt 0:00:18]} a6 {[%emt 0:00:07]} 4. Ba4 {[%emt 0:00:04]} Nf6 {[%emt 0:00:07]} 5. O-O {[%emt 0:00:40]} Be7 {[%emt 0:00:09]} 6. Re1 {[%emt 0:01:05]} b5 {[%emt 0:00:17]} 7. Bb3 {[%emt 0:00:04]} O-O {[%emt 0:00:09]} 8. a4 {[%emt 0:01:45]} b4 {[%emt 0:01:11]} 9. c3 {[%emt 0:04:54]} Rb8 {[%emt 0:03:33]} 10. d4 {[%emt 0:14:53]} d6 {[%emt 0:11:13]} 11. h3 {[%emt 0:02:50]} h6 {[%emt 0:13:37]} 12. Nbd2 {[%emt 0:01:11]} bxc3 {[%emt 0:15:56]} 13. bxc3 {[%emt 0:00:15]} exd4 {[%emt 0:00:05]} 14. cxd4 {[%emt 0:01:07]} Nb4 {[%emt 0:00:11]} 15. Nf1 {[%emt 0:03:41]} d5 {[%emt 0:04:10]} 16. Ng3 {[%emt 0:05:03]} dxe4 {[%emt 0:07:51]} 17. Ne5 {[%emt 0:02:43]} c5 {[%emt 0:04:39]} 18. Ng6 {[%emt 0:10:38]} Re8 {[%emt 0:02:00]} 19. Nxe4 {[%emt 0:03:10]} Nxe4 {[%emt 0:05:14]} 20. Rxe4 {[%emt 0:01:51]} Bf6 {[%emt 0:00:12]} 21. Rxe8+ {[%emt 0:01:54]} Qxe8 {[%emt 0:00:06]} 22. Bf4 {[%emt 0:02:46]} Rb7 {[%emt 0:03:39]} 23. Be5 {[%emt 0:05:17]} Bxe5 {[%emt 0:08:34]} 24. Nxe5 {[%emt 0:00:29]} cxd4 {[%emt 0:00:14]} 25. Qxd4 {[%emt 0:01:38]} Nc6 {[%emt 0:00:18]} 26. Nxc6 {[%emt 0:01:46]} Rxb3 {[%emt 0:01:17]} 27. Rc1 {[%emt 0:02:27]} Be6 {[%emt 0:02:34]} 28. Qa7 {[%emt 0:04:37]} Bd7 {[%emt 0:02:20]} 29. Qxa6 {[%emt 0:03:02]} Bxc6 {[%emt 0:00:07]} 30. Qxc6 {[%emt 0:00:32]} Qxc6 {[%emt 0:00:08]} 31. Rxc6 {[%emt 0:00:05]} Ra3 {[%emt 0:00:24]} 32. Ra6 {[%emt 0:00:23]} h5 {[%emt 0:00:25]} 33. h4 {[%emt 0:04:20]} g6 {[%emt 0:01:10]} 34. Ra7 {[%emt 0:01:37]} Kg7 {[%emt 0:00:16]} 35. a5 {[%emt 0:00:15]} Ra4 {[%emt 0:00:48]} 36. g3 {[%emt 0:00:12]} Ra2 {[%emt 0:00:17]} 37. a6 {[%emt 0:00:12]} Kf6 {[%emt 0:00:19]} 38. Kg2 {[%emt 0:00:29]} Ra3 {[%emt 0:00:08]} 39. Ra8 {[%emt 0:01:48]} Kf5 {[%emt 0:02:38]} 40. Ra7 {[%emt 0:02:07]} Kf6 {[%emt 0:00:09]} 41. Kf1 {[%emt 0:31:51]} Ra2 {[%emt 0:30:07]} 42. Ke1 {[%emt 0:00:53]} Ke6 {[%emt 0:00:46]} 43. Ra8 {[%emt 0:00:34]} Kf5 {[%emt 0:00:36]} 44. Ra7 {[%emt 0:02:29]} 1/2-1/2

[Event "129th New Zealand Championship 2022"]
[Site "Christchurch"]
[Date "2022.01.03"]
[Round "1.2"]
[White "Ker, Anthony F"]
[Black "Punsalan, Vyanla M"]
[Result "1-0"]
[ECO "B13"]
[WhiteElo "2303"]
[BlackElo "1945"]
[Annotator "ChessBase"]
[PlyCount "57"]
[EventDate "2022.01.02"]
[EventType "swiss"]
[EventCountry "NZL"]
[SourceTitle "playchess.com"]
[Source "ChessBase"]
[SourceQuality "1"]
[TimeControl "40/5400+30:1800+30"]

1. e4 {[%emt 0:00:06]} c6 {[%emt 0:00:22]} 2. d4 {[%emt 0:00:09]} d5 {[%emt 0:00:22]} 3. exd5 {[%emt 0:00:08]} cxd5 {[%emt 0:00:11]} 4. Bd3 {[%emt 0:00:26]} Nc6 {[%emt 0:00:37]} 5. c3 {[%emt 0:00:12]} g6 {[%emt 0:02:09]} 6. Bf4 {[%emt 0:12:50]} Bg7 {[%emt 0:04:14]} 7. Nd2 {[%emt 0:02:25]} Nf6 {[%emt 0:03:30]} 8. Ngf3 {[%emt 0:04:56]} Nh5 {[%emt 0:05:32]} 9. Be3 {[%emt 0:08:51]} Qd6 {[%emt 0:07:49]} 10. O-O {[%emt 0:05:31]} O-O {[%emt 0:09:10]} 11. Re1 {[%emt 0:02:50]} Nf4 {[%emt 0:05:57]} 12. Bb5 {[%emt 0:01:53]} Ne6 {[%emt 0:08:24]} 13. Nb3 {[%emt 0:05:04]} f5 {[%emt 0:03:57]} 14. c4 {[%emt 0:11:47]} f4 {[%emt 0:04:45]} 15. Bc1 {[%emt 0:02:29]} Kh8 {[%emt 0:03:35]} 16. cxd5 {[%emt 0:08:30]} Qxd5 {[%emt 0:00:53]} 17. Bxc6 {[%emt 0:02:11]} bxc6 {[%emt 0:01:35]} 18. Bd2 {[%emt 0:00:07]} g5 {[%emt 0:04:31]} 19. h3 {[%emt 0:00:20]} a5 {[%emt 0:08:55]} 20. Rc1 {[%emt 0:03:20]} Rb8 {[%emt 0:10:31]} 21. Bxa5 {[%emt 0:03:24]} Rb5 {[%emt 0:01:29]} 22. Bc3 {[%emt 0:00:47]} Nd8 {[%emt 0:05:08]} 23. Rxe7 {[%emt 0:05:48]} g4 {[%emt 0:01:54]} 24. hxg4 {[%emt 0:00:37]} Bxg4 {[%emt 0:00:07]} 25. Qd3 {[%emt 0:02:04]} Rg8 {[%emt 0:00:43]} 26. Ne5 {[%emt 0:02:20]} Bh3 {[%emt 0:01:17]} 27. Qxh3 {[%emt 0:00:30]} Bh6 {[%emt 0:02:09]} 28. Ng4 {[%emt 0:02:26]} f3 {[%emt 0:02:56]} 29. Qxh6 {[%emt 0:01:36]} 1-0

[Event "129th New Zealand Championship 2022"]
[Site "Christchurch"]
[Date "2022.01.03"]
[Round "1.3"]
[White "Tang, Hao"]
[Black "Dive, Russell John"]
[Result "0-1"]
[ECO "D94"]
[WhiteElo "1838"]
[BlackElo "2265"]
[Annotator "ChessBase"]
[PlyCount "98"]
[EventDate "2022.01.02"]
[EventType "swiss"]
[EventCountry "NZL"]
[SourceTitle "playchess.com"]
[Source "ChessBase"]
[SourceQuality "1"]
[TimeControl "40/5400+30:1800+30"]

1. d4 {[%emt 0:00:03]} Nf6 {[%emt 0:00:08]} 2. Nf3 {[%emt 0:00:04]} c5 {[%emt 0:00:25]} 3. c4 {[%emt 0:00:19]} cxd4 {[%emt 0:01:21]} 4. Nxd4 {[%emt 0:00:09]} g6 {[%emt 0:00:24]} 5. Nc3 {[%emt 0:00:39]} Bg7 {[%emt 0:00:08]} 6. e3 {[%emt 0:00:12]} O-O {[%emt 0:00:13]} 7. Be2 {[%emt 0:00:06]} d5 {[%emt 0:01:05]} 8. O-O {[%emt 0:04:01]} dxc4 {[%emt 0:00:39]} 9. Bxc4 {[%emt 0:00:06]} a6 {[%emt 0:00:23]} 10. Be2 {[%emt 0:00:36]} e5 {[%emt 0:01:56]} 11. Nf3 {[%emt 0:07:12]} Nc6 {[%emt 0:00:44]} 12. e4 {[%emt 0:05:23]} h6 {[%emt 0:05:06]} 13. Be3 {[%emt 0:03:03]} Be6 {[%emt 0:05:49]} 14. Rc1 {[%emt 0:05:56]} Rc8 {[%emt 0:01:23]} 15. Qa4 {[%emt 0:01:32]} Qc7 {[%emt 0:08:41]} 16. Rfd1 {[%emt 0:05:25]} Rfd8 {[%emt 0:00:15]} 17. h3 {[%emt 0:00:18]} Kh7 {[%emt 0:12:44]} 18. a3 {[%emt 0:09:12]} Rxd1+ {[%emt 0:05:10]} 19. Rxd1 {[%emt 0:06:05]} Rd8 {[%emt 0:00:32]} 20. Rxd8 {[%emt 0:02:07]} Nxd8 {[%emt 0:09:50]} 21. Qd1 {[%emt 0:15:08]} Nc6 {[%emt 0:01:26]} 22. Nd5 {[%emt 0:08:22]} Qd8 {[%emt 0:09:42]} 23. Bb6 {[%emt 0:02:22]} Qc8 {[%emt 0:01:03]} 24. Nxf6+ {[%emt 0:00:13]} Bxf6 {[%emt 0:00:02]} 25. Be3 {[%emt 0:03:31]} Bg7 {[%emt 0:07:50]} 26. b4 {[%emt 0:02:41]} f5 {[%emt 0:15:29]} 27. exf5 {[%emt 0:01:07]} gxf5 {[%emt 0:00:25]} 28. Qd6 {[%emt 0:04:49]} Bf8 {[%emt 0:03:27]} 29. Qd1 {[%emt 0:01:33]} Qd7 {[%emt 0:03:11]} 30. Qxd7+ {[%emt 0:01:38]} Bxd7 {[%emt 0:00:02]} 31. b5 {[%emt 0:00:56]} axb5 {[%emt 0:00:15]} 32. Bxb5 {[%emt 0:00:07]} Bxa3 {[%emt 0:03:15]} 33. Bxc6 {[%emt 0:00:31]} Bxc6 {[%emt 0:00:01]} 34. Nxe5 {[%emt 0:00:10]} Bd5 {[%emt 0:00:09]} 35. Bb6 {[%emt 0:00:57]} Kg7 {[%emt 0:00:37]} 36. f4 {[%emt 0:01:14]} Kf6 {[%emt 0:00:42]} 37. Kf2 {[%emt 0:00:49]} Ke6 {[%emt 0:00:43]} 38. g4 {[%emt 0:01:31]} Be4 {[%emt 0:01:47]} 39. Nc4 {[%emt 0:04:33]} Bb4 {[%emt 0:00:56]} 40. Ne3 {[%emt 0:03:19]} Kd6 {[%emt 0:01:17]} 41. g5 {[%emt 0:15:50]} hxg5 {[%emt 0:03:00]} 42. fxg5 {[%emt 0:00:30]} f4 {[%emt 0:00:51]} 43. Ng4 {[%emt 0:04:22]} Ke6 {[%emt 0:00:09]} 44. Nf6 {[%emt 0:01:21]} Bc6 {[%emt 0:00:14]} 45. h4 {[%emt 0:03:10]} Kf5 {[%emt 0:00:41]} 46. Ke2 {[%emt 0:04:40]} Bc3 {[%emt 0:00:29]} 47. Bd8 {[%emt 0:02:52]} f3+ {[%emt 0:03:05]} 48. Kf1 {[%emt 0:02:56]} Bd4 {[%emt 0:01:18]} 49. Nh5 {[%emt 0:00:42]} Bb5+ {[%emt 0:00:22]} 0-1

[Event "129th New Zealand Championship 2022"]
[Site "Christchurch"]
[Date "2022.01.03"]
[Round "1.4"]
[White "Lukey, Stephen G"]
[Black "Metge, J. Nigel"]
[Result "1-0"]
[ECO "A90"]
[WhiteElo "2162"]
[BlackElo "1879"]
[Annotator "ChessBase"]
[PlyCount "57"]
[EventDate "2022.01.02"]
[EventType "swiss"]
[EventCountry "NZL"]
[SourceTitle "playchess.com"]
[Source "ChessBase"]
[SourceQuality "1"]
[TimeControl "40/5400+30:1800+30"]

1. d4 {[%emt 0:00:04]} e6 {[%emt 0:00:17]} 2. Nf3 {[%emt 0:00:08]} f5 {[%emt 0:00:18]} 3. g3 {[%emt 0:00:07]} Nf6 {[%emt 0:00:05]} 4. Bg2 {[%emt 0:00:04]} d5 {[%emt 0:00:26]} 5. c4 {[%emt 0:01:54]} c6 {[%emt 0:00:12]} 6. O-O {[%emt 0:00:09]} Bd6 {[%emt 0:00:27]} 7. b3 {[%emt 0:00:40]} Qe7 {[%emt 0:00:32]} 8. Ne5 {[%emt 0:00:05]} O-O {[%emt 0:05:09]} 9. Bf4 {[%emt 0:01:41]} Nbd7 {[%emt 0:13:01]} 10. Nd3 {[%emt 0:01:30]} dxc4 {[%emt 0:07:42]} 11. bxc4 {[%emt 0:01:25]} e5 {[%emt 0:00:22]} 12. dxe5 {[%emt 0:12:56]} Nxe5 {[%emt 0:00:15]} 13. Qb3 {[%emt 0:07:58]} Kh8 {[%emt 0:05:41]} 14. Nd2 {[%emt 0:02:26]} Nfd7 {[%emt 0:06:44]} 15. Nf3 {[%emt 0:04:27]} Nxf3+ {[%emt 0:01:10]} 16. Bxf3 {[%emt 0:00:09]} Bxf4 {[%emt 0:07:08]} 17. Nxf4 {[%emt 0:00:07]} Nc5 {[%emt 0:06:20]} 18. Qa3 {[%emt 0:00:56]} Rf7 {[%emt 0:15:03]} 19. Rfd1 {[%emt 0:03:39]} Ne6 {[%emt 0:08:54]} 20. Qd6 {[%emt 0:05:34]} g6 {[%emt 0:05:25]} 21. Rab1 {[%emt 0:05:48]} Nxf4 {[%emt 0:00:25]} 22. Qxf4 {[%emt 0:06:29]} Be6 {[%emt 0:01:04]} 23. Rb3 {[%emt 0:06:01]} Qc5 {[%emt 0:00:47]} 24. Rd6 {[%emt 0:10:27]} g5 {[%emt 0:08:12]} 25. Qd2 {[%emt 0:01:00]} Re8 {[%emt 0:04:25]} 26. Rd8 {[%emt 0:05:52]} Qe7 {[%emt 0:03:26]} 27. Rxe8+ {[%emt 0:01:29]} Qxe8 {[%emt 0:00:00]} 28. Bh5 {[%emt 0:01:02]} Rd7 {[%emt 0:00:00]} 29. Qc3+ {[%emt 0:00:18]} 1-0

[Event "129th New Zealand Championship 2022"]
[Site "Christchurch"]
[Date "2022.01.03"]
[Round "1.5"]
[White "Sole, Michael D"]
[Black "Gong, Daniel Hanwen"]
[Result "0-1"]
[ECO "B38"]
[WhiteElo "1815"]
[BlackElo "2269"]
[Annotator "ChessBase"]
[PlyCount "74"]
[EventDate "2022.01.02"]
[EventType "swiss"]
[EventCountry "NZL"]
[SourceTitle "playchess.com"]
[Source "ChessBase"]
[SourceQuality "1"]
[TimeControl "40/5400+30:1800+30"]

1. e4 {[%emt 0:00:15]} c5 {[%emt 0:00:39]} 2. Nf3 {[%emt 0:00:10]} Nc6 {[%emt 0:00:49]} 3. d4 {[%emt 0:00:34]} cxd4 {[%emt 0:00:04]} 4. Nxd4 {[%emt 0:00:10]} g6 {[%emt 0:00:07]} 5. c4 {[%emt 0:00:31]} Bg7 {[%emt 0:00:04]} 6. Be3 {[%emt 0:00:25]} Nf6 {[%emt 0:00:08]} 7. Nc3 {[%emt 0:00:33]} O-O {[%emt 0:00:04]} 8. Be2 {[%emt 0:01:00]} d6 {[%emt 0:00:04]} 9. O-O {[%emt 0:00:30]} Bd7 {[%emt 0:00:02]} 10. h3 {[%emt 0:00:51]} a5 {[%emt 1:33:29]} 11. Qc2 {[%emt 0:19:11]} Ne8 {[%emt 0:00:00]} 12. Nxc6 {[%emt 0:05:24]} Bxc6 {[%emt 0:00:00]} 13. Rfd1 {[%emt 0:07:14]} Qc7 {[%emt 0:00:00]} 14. Rac1 {[%emt 0:03:48]} Nf6 {[%emt 0:00:00]} 15. b3 {[%emt 0:07:37]} Rfc8 {[%emt 0:00:00]} 16. Bg4 {[%emt 0:04:22]} Nxg4 {[%emt 0:00:00]} 17. hxg4 {[%emt 0:00:17]} b5 {[%emt 0:00:00]} 18. cxb5 {[%emt 0:11:13]} Bxb5 {[%emt 0:00:00]} 19. Qb1 {[%emt 0:01:28]} Bxc3 {[%emt 0:00:00]} 20. Bd4 {[%emt 0:00:56]} Qd7 {[%emt 0:00:00]} 21. Bxc3 {[%emt 0:02:33]} Be2 {[%emt 0:00:00]} 22. Rd5 {[%emt 0:10:26]} Qxg4 {[%emt 0:00:00]} 23. Kh2 {[%emt 0:01:32]} e6 {[%emt 0:00:00]} 24. Rd4 {[%emt 0:01:51]} Rc5 {[%emt 0:00:00]} 25. e5 {[%emt 0:05:04]} Qh5+ {[%emt 0:00:00]} 26. Kg1 {[%emt 0:01:59]} dxe5 {[%emt 0:00:00]} 27. Re4 {[%emt 0:04:25]} Rac8 {[%emt 0:00:00]} 28. Re3 {[%emt 0:02:26]} Ba6 {[%emt 0:00:00]} 29. Qb2 {[%emt 0:00:56]} Bb7 {[%emt 0:00:00]} 30. Rce1 {[%emt 0:01:00]} Qg5 {[%emt 0:00:00]} 31. Rg3 {[%emt 0:02:13]} Qf5 {[%emt 0:00:00]} 32. Rxe5 {[%emt 0:03:00]} Rxe5 {[%emt 0:00:00]} 33. Bxe5 {[%emt 0:00:04]} Rc2 {[%emt 0:00:00]} 34. Qd4 {[%emt 0:00:27]} Rc1+ {[%emt 0:00:00]} 35. Kh2 {[%emt 0:00:03]} Qh5+ {[%emt 0:00:00]} 36. Rh3 {[%emt 0:00:15]} Rh1+ {[%emt 0:00:00]} 37. Kg3 {[%emt 0:00:35]} Qg5+ {[%emt 0:00:00]} 0-1

[Event "129th New Zealand Championship 2022"]
[Site "Christchurch"]
[Date "2022.01.03"]
[Round "1.6"]
[White "Xie, Felix"]
[Black "Langford, Josh"]
[Result "1-0"]
[ECO "E04"]
[WhiteElo "2166"]
[BlackElo "1637"]
[Annotator "ChessBase"]
[PlyCount "31"]
[EventDate "2022.01.02"]
[EventType "swiss"]
[EventCountry "NZL"]
[SourceTitle "playchess.com"]
[Source "ChessBase"]
[SourceQuality "1"]
[TimeControl "40/5400+30:1800+30"]

1. d4 {[%emt 0:00:14]} Nf6 {[%emt 0:00:13]} 2. c4 {[%emt 0:00:18]} e6 {[%emt 0:00:07]} 3. g3 {[%emt 0:00:06]} d5 {[%emt 0:01:12]} 4. Bg2 {[%emt 0:00:08]} dxc4 {[%emt 0:00:54]} 5. Nf3 {[%emt 0:00:27]} c5 {[%emt 0:10:29]} 6. Qa4+ {[%emt 0:05:22]} Nc6 {[%emt 0:08:04]} 7. Ne5 {[%emt 0:01:09]} Qa5+ {[%emt 0:02:33]} 8. Qxa5 {[%emt 0:00:07]} Nxa5 {[%emt 0:00:02]} 9. Bd2 {[%emt 0:00:01]} cxd4 {[%emt 0:03:47]} 10. Bxa5 {[%emt 0:00:27]} Bd7 {[%emt 0:04:15]} 11. Nxd7 {[%emt 0:04:04]} Nxd7 {[%emt 0:07:51]} 12. Bxb7 {[%emt 0:00:40]} Rb8 {[%emt 0:00:11]} 13. Ba6 {[%emt 0:00:44]} Rxb2 {[%emt 0:16:01]} 14. Bxc4 {[%emt 0:00:16]} Ne5 {[%emt 0:01:31]} 15. Bb3 {[%emt 0:00:15]} d3 {[%emt 0:00:23]} 16. Nd2 {[%emt 0:00:07]} 1-0

[Event "129th New Zealand Championship 2022"]
[Site "Christchurch"]
[Date "2022.01.03"]
[Round "1.7"]
[White "Wang, Aaron Ziwen"]
[Black "McNabb, Matthew David"]
[Result "0-1"]
[ECO "A37"]
[WhiteElo "1788"]
[BlackElo "2029"]
[Annotator "ChessBase"]
[PlyCount "102"]
[EventDate "2022.01.02"]
[EventType "swiss"]
[EventCountry "NZL"]
[SourceTitle "playchess.com"]
[Source "ChessBase"]
[SourceQuality "1"]
[TimeControl "40/5400+30:1800+30"]

1. c4 {[%emt 0:00:04]} c5 {[%emt 0:00:08]} 2. Nc3 {[%emt 0:00:18]} Nc6 {[%emt 0:00:05]} 3. g3 {[%emt 0:00:04]} g6 {[%emt 0:00:15]} 4. Bg2 {[%emt 0:00:05]} Bg7 {[%emt 0:00:02]} 5. Nf3 {[%emt 0:00:06]} e5 {[%emt 0:00:38]} 6. d3 {[%emt 0:01:55]} Nge7 {[%emt 0:00:19]} 7. Ng5 {[%emt 0:04:33]} d6 {[%emt 0:04:36]} 8. Bd5 {[%emt 0:02:14]} O-O {[%emt 0:05:35]} 9. h4 {[%emt 0:11:18]} Nxd5 {[%emt 0:14:17]} 10. Nxd5 {[%emt 0:00:29]} h6 {[%emt 0:03:58]} 11. Ne4 {[%emt 0:01:11]} f5 {[%emt 0:01:48]} 12. Nec3 {[%emt 0:00:39]} a6 {[%emt 0:07:29]} 13. a3 {[%emt 0:10:13]} Rb8 {[%emt 0:13:17]} 14. Be3 {[%emt 0:05:20]} b5 {[%emt 0:07:35]} 15. Qc1 {[%emt 0:05:17]} Kh7 {[%emt 0:04:59]} 16. cxb5 {[%emt 0:03:55]} axb5 {[%emt 0:02:24]} 17. b4 {[%emt 0:00:33]} cxb4 {[%emt 0:04:56]} 18. axb4 {[%emt 0:00:42]} e4 {[%emt 0:06:04]} 19. dxe4 {[%emt 0:18:12]} fxe4 {[%emt 0:00:04]} 20. Nxe4 {[%emt 0:01:12]} Bf5 {[%emt 0:06:46]} 21. Nec3 {[%emt 0:04:06]} Rc8 {[%emt 0:04:08]} 22. Nb6 {[%emt 0:03:22]} Qf6 {[%emt 0:02:48]} 23. Nbd5 {[%emt 0:08:29]} Qe6 {[%emt 0:02:25]} 24. Ra3 {[%emt 0:03:53]} Bxc3+ {[%emt 0:00:23]} 25. Nxc3 {[%emt 0:00:25]} Nxb4 {[%emt 0:00:17]} 26. Ra7+ {[%emt 0:00:31]} Rf7 {[%emt 0:00:58]} 27. Rxf7+ {[%emt 0:00:27]} Qxf7 {[%emt 0:00:02]} 28. Qb2 {[%emt 0:08:36]} Nc2+ {[%emt 0:01:04]} 29. Kd2 {[%emt 0:01:00]} Rxc3 {[%emt 0:02:00]} 30. Qxc3 {[%emt 0:00:32]} Qd5+ {[%emt 0:00:05]} 31. Bd4 {[%emt 0:00:09]} Nxd4 {[%emt 0:01:56]} 32. Qc7+ {[%emt 0:00:17]} Kg8 {[%emt 0:00:47]} 33. Qd8+ {[%emt 0:01:25]} Kf7 {[%emt 0:00:08]} 34. Qc7+ {[%emt 0:00:11]} Ke8 {[%emt 0:00:33]} 35. Qb8+ {[%emt 0:00:21]} Kd7 {[%emt 0:00:45]} 36. Qa7+ {[%emt 0:00:10]} Ke6 {[%emt 0:00:43]} 37. e4 {[%emt 0:04:19]} Bxe4 {[%emt 0:00:17]} 38. Qh7 {[%emt 0:01:52]} Nf5+ {[%emt 0:02:18]} 39. Kc3 {[%emt 0:00:22]} Qc4+ {[%emt 0:00:22]} 40. Kb2 {[%emt 0:00:28]} Qd4+ {[%emt 0:00:20]} 41. Ka2 {[%emt 0:30:09]} Bd5+ {[%emt 0:31:17]} 42. Kb1 {[%emt 0:00:14]} Qd3+ {[%emt 0:00:17]} 43. Kb2 {[%emt 0:00:14]} Qb3+ {[%emt 0:00:06]} 44. Kc1 {[%emt 0:00:06]} Qc3+ {[%emt 0:00:02]} 45. Kb1 {[%emt 0:00:56]} Be4+ {[%emt 0:00:09]} 46. Ka2 {[%emt 0:00:04]} Qc2+ {[%emt 0:00:45]} 47. Ka1 {[%emt 0:01:06]} Qa4+ {[%emt 0:00:06]} 48. Kb2 {[%emt 0:00:03]} Qb4+ {[%emt 0:00:05]} 49. Ka2 {[%emt 0:00:40]} Bd5+ {[%emt 0:00:35]} 50. Ka1 {[%emt 0:00:04]} Qa3+ {[%emt 0:00:04]} 51. Kb1 {[%emt 0:00:04]} Be4# {[%emt 0:00:48]} 0-1

[Event "129th New Zealand Championship 2022"]
[Site "Christchurch"]
[Date "2022.01.03"]
[Round "1.8"]
[White "Cilia Vincenti, David"]
[Black "Ning, Isabelle Yixuan"]
[Result "1-0"]
[ECO "A26"]
[WhiteElo "2076"]
[BlackElo "1796"]
[Annotator "NA"]
[PlyCount "127"]
[EventDate "2022.01.02"]
[EventType "swiss"]
[EventCountry "NZL"]
[SourceTitle "playchess.com"]
[Source "ChessBase"]
[SourceQuality "1"]
[TimeControl "40/5400+30:1800+30"]

1. c4 {[%emt 0:08:45]} Nf6 {[%emt 0:00:10]} 2. Nc3 {[%emt 0:00:06]} g6 {[%emt 0:00:10]} 3. g3 {[%emt 0:00:11]} Bg7 {[%emt 0:00:11]} 4. Bg2 {[%emt 0:00:09]} O-O {[%emt 0:00:13]} 5. e4 {[%emt 0:00:05]} d6 {[%emt 0:00:11]} 6. Nge2 {[%emt 0:00:08]} Nc6 {[%emt 0:03:01]} 7. O-O {[%emt 0:00:16]} e5 {[%emt 0:04:16]} 8. d3 {[%emt 0:01:27]} a6 {[%emt 0:03:12]} 9. a4 {[%emt 0:02:55]} a5 {[%emt 0:03:58]} 10. h3 {[%emt 0:01:32]} Be6 {[%emt 0:03:08]} 11. Nd5 {[%emt 0:01:57]} Ne7 {[%emt 0:04:26]} 12. Bg5 {[%emt 0:02:12]} Nfxd5 {[%emt 0:02:10]} 13. cxd5 {[%emt 0:02:35]} Bd7 {[%emt 0:00:08]} 14. Qd2 {[%emt 0:04:02]} Ra6 {[%emt 0:05:17]} 15. Be3 {[%emt 0:05:22]} c6 {[%emt 0:03:31]} 16. dxc6 {[%emt 0:00:52]} Nxc6 {[%emt 0:00:40]} 17. d4 {[%emt 0:04:33]} exd4 {[%emt 0:04:44]} 18. Nxd4 {[%emt 0:00:30]} Ne5 {[%emt 0:00:31]} 19. b3 {[%emt 0:02:49]} Qe7 {[%emt 0:15:32]} 20. Rac1 {[%emt 0:04:53]} Nc6 {[%emt 0:01:49]} 21. Nb5 {[%emt 0:09:21]} Nb4 {[%emt 0:15:08]} 22. Nc7 {[%emt 0:08:27]} Rc6 {[%emt 0:01:43]} 23. Nd5 {[%emt 0:00:52]} Nxd5 {[%emt 0:04:07]} 24. exd5 {[%emt 0:00:13]} Rxc1 {[%emt 0:00:45]} 25. Rxc1 {[%emt 0:00:10]} Qd8 {[%emt 0:01:16]} 26. Qc2 {[%emt 0:09:27]} b5 {[%emt 0:02:57]} 27. axb5 {[%emt 0:08:36]} Bxb5 {[%emt 0:00:09]} 28. Qc7 {[%emt 0:01:11]} Qxc7 {[%emt 0:03:40]} 29. Rxc7 {[%emt 0:00:04]} Rb8 {[%emt 0:00:22]} 30. Bf4 {[%emt 0:04:06]} Be5 {[%emt 0:05:11]} 31. Bxe5 {[%emt 0:01:13]} dxe5 {[%emt 0:00:08]} 32. Ra7 {[%emt 0:01:18]} Be8 {[%emt 0:02:40]} 33. Rxa5 {[%emt 0:02:39]} Rxb3 {[%emt 0:01:14]} 34. Ra8 {[%emt 0:00:10]} Kf8 {[%emt 0:00:48]} 35. d6 {[%emt 0:00:06]} Rd3 {[%emt 0:01:42]} 36. Bc6 {[%emt 0:00:33]} Rxd6 {[%emt 0:00:38]} 37. Rxe8+ {[%emt 0:00:20]} Kg7 {[%emt 0:00:04]} 38. Bb5 {[%emt 0:00:58]} Rd5 {[%emt 0:01:04]} 39. Rb8 {[%emt 0:00:28]} f5 {[%emt 0:02:39]} 40. Rb7+ {[%emt 0:03:02]} Kh6 {[%emt 0:00:14]} 41. Bc4 {[%emt 0:30:23]} Rd1+ {[%emt 0:31:01]} 42. Kg2 {[%emt 0:00:42]} Rd8 {[%emt 0:00:55]} 43. h4 {[%emt 0:04:27]} e4 {[%emt 0:00:59]} 44. Kf1 {[%emt 0:00:27]} Rc8 {[%emt 0:00:54]} 45. Bb3 {[%emt 0:00:56]} Rd8 {[%emt 0:03:38]} 46. Ke2 {[%emt 0:00:34]} Rc8 {[%emt 0:00:36]} 47. Ke3 {[%emt 0:00:00]} Rd8 {[%emt 0:00:00]} 48. Bc4 {[%emt 0:00:00]} Rc8 {[%emt 0:00:00]} 49. Kd4 {[%emt 0:00:00]} Rd8+ {[%emt 0:00:00]} 50. Bd5 {[%emt 0:00:00]} Re8 {[%emt 0:00:00]} 51. Rd7 {[%emt 0:00:00]} Rb8 {[%emt 0:00:00]} 52. Re7 {[%emt 0:00:00]} Rf8 {[%emt 0:00:00]} 53. Ke5 {[%emt 0:00:00]} Rd8 {[%emt 0:00:00]} 54. Ra7 {[%emt 0:00:00]} Re8+ {[%emt 0:00:00]} 55. Be6 {[%emt 0:00:00]} Rf8 {[%emt 0:00:00]} 56. Rf7 {[%emt 0:00:00]} Re8 {[%emt 0:00:00]} 57. Rc7 {[%emt 0:00:00]} Rf8 {[%emt 0:00:00]} 58. Rc8 {[%emt 0:00:00]} Rxc8 {[%emt 0:00:00]} 59. Bxc8 {[%emt 0:00:00]} Kh5 {[%emt 0:00:00]} 60. Bxf5 {[%emt 0:00:00]} gxf5 {[%emt 0:00:00]} 61. Kxf5 {[%emt 0:00:00]} e3 {[%emt 0:00:00]} 62. fxe3 {[%emt 0:00:00]} h6 {[%emt 0:00:00]} 63. g4+ {[%emt 0:00:00]} Kxh4 {[%emt 0:00:00]} 64. e4 {[%emt 0:00:00]} 1-0